[Event "8th Brazilian Open SESC Caioba 2024"]
[Site "Caioba"]
[Date "2024.06.27"]
[Round "6.2"]
[White "Delgado Ramirez, Neuris"]
[Black "Santiago, Yago De Moura"]
[Result "1-0"]
[ECO "C07"]
[WhiteElo "2487"]
[BlackElo "2462"]
[Annotator "TA"]
[PlyCount "75"]
[EventDate "2024.06.15"]
[EventCountry "BRA"]
[SourceTitle "playchess.com"]
[Source "ChessBase"]
[SourceQuality "1"]
[TimeControl "5400+30"]

{[%evp 11,75,16,24,0,8,-13,0,0,0,0,221,214,281,283,279,104,113,116,155,87,203,197,172,167,207,180,206,209,220,153,157,147,153,167,213,166,166,164,170,167,152,147,148,149,155,160,154,150,153,139,218,210,245,245,256,249,312,306,303,310,375,360,391,385,382,380]} 1. e4 {[%emt 0:19:24]} e6 {[%emt 0:00:09]} 2. d4 {[%emt 0:00:05]} d5 {[%emt 0:00:05]} 3. Nd2 {[%emt 0:00:08]} c5 {[%emt 0:00:09]} 4. exd5 {[%emt 0:00:08]} Qxd5 {[%emt 0:00:14]} 5. Ngf3 {[%emt 0:00:10][%cal Bg1f3,Bf3d2,Bd2c4][%mdl 32]} cxd4 {[%emt 0:00:10]} 6. Bc4 {[%emt 0:00:06]} Qd6 {[%emt 0:00:08]} 7. Ne4 {[%emt 0:00:12][%mdl 1024] Repels Nf6. White has compensation.} Qb4+ {[%emt 0:05:25]} 8. Nfd2 {[%emt 0:00:12]} Nh6 {[%emt 0:01:33]} 9. c3 {[%emt 0:01:53] The position is equal.} Qb6 {[%emt 0:01:18]} 10. Bb3 {[%emt 0:06:13] Threatens to win with Nc4.} Be7 $2 {[%emt 0:05:20]} (10... Nf5 $11 {and Black is okay.}) 11. Nc4 $1 $18 {[%emt 0:02:27][%csl LRb6,LRd4]} Qd8 {[%emt 0:00:07]} 12. Bxh6 {[%emt 0:03:12]} (12. Qxd4 Qxd4 13. cxd4 Nf5 $15) (12. cxd4 Nf5 $15) 12... gxh6 {[%emt 0:00:38]} 13. Qh5 $2 {[%emt 0:00:03]} (13. Qxd4 Qxd4 14. cxd4 O-O $11) (13. cxd4 Bb4+ 14. Kf1 O-O $16) (13. Ncd6+ $18 {is more deadly.} Bxd6 14. Qxd4) 13... O-O {[%emt 0:02:44]} 14. O-O-O {[%emt 0:01:43]} (14. Qxh6 f5 $14) 14... Qd5 {[%emt 0:11:20]} 15. Qe2 {[%emt 0:19:15]} (15. Qxh6 $2 Qxe4 $19) ({Better is} 15. Qg4+ Bg5+ 16. Ne3) 15... Qf5 {[%emt 0:13:01]} (15... Nc6 $16) 16. Rxd4 {[%emt 0:04:13]} (16. cxd4 $6 Rd8 $14) 16... Nc6 {[%emt 0:01:41][%cal Ob7b5]} 17. Rdd1 {[%emt 0:01:10]} Kh8 {[%emt 0:07:32]} 18. g3 {[%emt 0:01:14]} Qg6 {[%emt 0:47:56]} 19. Ned6 {[%emt 0:02:21]} b5 {[%emt 0:00:00]} 20. Ne5 {[%emt 0:00:07] Active counter play!} (20. Nxb5 Qg5+ 21. Ne3 Qe5) 20... Nxe5 {[%emt 0:00:00]} 21. Qxe5+ {[%emt 0:01:04]} Kg8 {[%emt 0:00:00][%cal Ob5b4]} 22. Qxb5 {[%emt 0:00:25]} Rd8 {[%emt 0:00:00]} (22... Bxd6 23. Rxd6 Qg5+ 24. Qxg5+ hxg5 25. Re1) (22... Qg5+ $142 23. f4 Qxb5 24. Nxb5 a5) 23. Bc2 {[%emt 0:04:42]} Qg5+ {[%emt 0:00:00] [#]} 24. f4 $1 {[%emt 0:01:35]} Qxb5 {[%emt 0:00:00]} 25. Nxb5 {[%emt 0:00:03]} Bd7 {[%emt 0:00:00]} 26. Nd4 {[%emt 0:00:11][%cal Bb5d4,Bd4f5,Bf5d6,Bd6c4,Bc4e5][%mdl 32]} Rab8 {[%emt 0:00:00][%cal Ba8b8,Bb8b7,Bb7c7][%mdl 32]} 27. Rhe1 $36 {[%emt 0:00:28][%mdl 2048] White is on the roll.} Rb7 {[%emt 0:00:00]} 28. Nf5 {[%emt 0:03:02]} Bf8 {[%emt 0:00:00]} 29. Nd6 {[%emt 0:00:08]} Rc7 {[%emt 0:00:00]} 30. Bb3 {[%emt 0:04:53]} Rb8 {[%emt 0:00:00] [#]} (30... Bc6 $16 {keeps fighting.}) 31. f5 $1 {[%emt 0:01:21][%mdl 512]} Rb6 {[%emt 0:00:00]} (31... exf5 32. Bxf7+) 32. Nc4 {[%emt 0:03:40]} (32. Nxf7 Kxf7 33. Rxd7+ Rxd7 $18) 32... Rbb7 {[%emt 0:00:00]} 33. Ne5 {[%emt 0:00:33] And now f6 would win.} exf5 {[%emt 0:00:00]} 34. Bd5 {[%emt 0:02:23]} (34. Nxf7 Rxb3 35. axb3 Kxf7 $17) 34... Rb5 {[%emt 0:04:35] Black is weak on the light squares} 35. Bc4 {[%emt 0:04:31]} ({Weaker is} 35. Nxf7 Rxd5 36. Rxd5 Kxf7 $17) (35. Bxf7+ Kg7 36. Nxd7 (36. Rxd7 Rxe5 37. Bb3+ Rxd7 $18) 36... Kxf7 37. Nxf8 Kxf8 $18) 35... Rbb7 {[%emt 0:01:06]} 36. Ba6 {[%emt 0:00:03] White is winning.} ({Don't take} 36. Bxf7+ Kg7 37. Kc2 Bc8 $18) 36... Ba4 {[%emt 0:02:03]} 37. Rd4 {[%emt 0:00:12]} ({Much less strong is} 37. Bxb7 Bxd1 38. Rxd1 Rxb7 $18) 37... Rb4 {[%emt 0:01:11]} 38. Bc4 {[%emt 0:00:04] Weighted Error Value: White=0.16 (very precise) /Black=0.34.  Loses game:     	---       	Black=1      Missed win:     	White=1     	---        Mistake:       	White=1     	Black=3      Inaccurate:     	White=1     	Black=2      OK:         	White=16    	Black=10     Best:        	White=5     	---        Strong:       	White=1     	---} 1-0

[Event "8th Brazilian Open SESC Caioba 2024"]
[Site "Caioba"]
[Date "2024.06.27"]
[Round "6.3"]
[White "Filgueiras, Nathan Felipe"]
[Black "Hernandez Guerrero, Gilberto"]
[Result "1-0"]
[ECO "B42"]
[WhiteElo "2294"]
[BlackElo "2506"]
[Annotator "TA"]
[PlyCount "89"]
[EventDate "2024.06.15"]
[EventCountry "BRA"]
[SourceTitle "playchess.com"]
[Source "ChessBase"]
[SourceQuality "1"]
[TimeControl "5400+30"]

{[%evp 19,89,36,51,43,45,0,1,0,-4,-50,-49,-79,-83,-80,-74,-61,-65,-75,-50,-72,-89,-101,-38,-47,-17,-18,0,0,0,0,-8,-39,0,0,0,0,0,0,0,0,78,68,74,75,75,76,76,2,50,45,103,55,142,82,161,229,241,193,235,186,221,226,385,384,508,499,489,474,467,457,446,439]} 1. e4 {[%emt 0:03:36]} c5 {[%emt 0:00:22]} 2. Nf3 {[%emt 0:00:22]} e6 {[%emt 0:00:12]} 3. d4 {[%emt 0:00:11]} cxd4 {[%emt 0:00:06]} 4. Nxd4 {[%emt 0:00:04]} a6 {[%emt 0:00:05]} 5. Bd3 {[%emt 0:02:18]} Bc5 {[%emt 0:01:02]} 6. Nb3 {[%emt 0:00:06]} Ba7 {[%emt 0:00:09]} 7. Qe2 {[%emt 0:00:40]} Nc6 {[%emt 0:01:29]} 8. Be3 {[%emt 0:00:30]} Nf6 {[%emt 0:09:08]} 9. Bxa7 {[%emt 0:03:04]} Rxa7 {[%emt 0:00:06]} 10. Nc3 {[%emt 0:02:27]} d6 {[%emt 0:00:59]} 11. g4 {[%emt 0:05:23][%cal Bg2g4,Bg4g5][%mdl 32]} b5 {[%emt 0:03:43]} 12. g5 {[%emt 0:01:36]} Nd7 {[%emt 0:00:09]} 13. Qe3 {[%emt 0:00:06] The position is equal.} Qb6 {[%emt 0:08:57]} 14. Qg3 {[%emt 0:02:33]} (14. Qxb6 $11 Nxb6 15. O-O-O) 14... Nce5 $15 {[%emt 0:15:06]} 15. O-O-O {[%emt 0:11:11]} b4 $1 {[%emt 0:01:07]} 16. Ne2 {[%emt 0:02:16]} a5 $1 {[%emt 0:00:53]} (16... Nxd3+ 17. Qxd3 Ke7 (17... Qxf2 18. Qxd6 Qb6 19. Qxb6 $14) 18. Rhe1 $11) 17. Kb1 {[%emt 0:06:21]} O-O {[%emt 0:02:58]} 18. f4 {[%emt 0:14:10]} Nxd3 {[%emt 0:00:41]} 19. Qxd3 {[%emt 0:00:36]} Ba6 {[%emt 0:01:15]} 20. Qd2 {[%emt 0:03:20]} a4 {[%emt 0:12:27]} (20... Rc8 $17 21. Rhe1 a4) 21. Nbc1 $1 {[%emt 0:01:00]} Bb7 {[%emt 0:00:37]} 22. Ng3 {[%emt 0:01:30][%cal Be2g3,Bg3e4,Be4d6][%mdl 32]} d5 {[%emt 0:03:42][%cal Ob4b3]} 23. Qd4 {[%emt 0:05:21]} Bc6 {[%emt 0:03:07]} (23... Rc8 $5) 24. Qxb6 {[%emt 0:01:37]} Nxb6 {[%emt 0:00:06][%cal Bd7b6,Bb6d5,Bd5c3][%mdl 32]} 25. e5 {[%emt 0:00:10]} d4 {[%emt 0:01:41]} 26. Rhe1 {[%emt 0:04:49]} Rd8 {[%emt 0:03:34]} 27. Ne4 $1 {[%emt 0:06:00]} a3 {[%emt 0:00:28]} 28. b3 {[%emt 0:03:06]} Nd5 {[%emt 0:00:52]} 29. Ne2 {[%emt 0:01:21]} (29. Rxd4 $2 Nc3+ 30. Nxc3 Rxd4 $19) 29... Rad7 {[%emt 0:06:26]} (29... d3 $11 {keeps the balance.} 30. cxd3 (30. Rxd3 Bb5 $11) 30... Ne3) 30. Nd6 $1 $16 {[%emt 0:04:24]} (30. Nxd4 $2 Nc3+ (30... Nxf4 31. Nd6 $15) 31. Nxc3 bxc3 $19 (31... Rxd4 $2 32. Rxd4 Rxd4 33. Rd1 $18)) (30. Rxd4 Bb5 31. Nc1 Ba6 $17) 30... Nc3+ {[%emt 0:00:39]} 31. Nxc3 {[%emt 0:00:08]} dxc3 {[%emt 0:00:07]} 32. Rd4 {[%emt 0:00:40]} Rb8 {[%emt 0:00:14]} 33. Red1 {[%emt 0:01:59]} (33. Re3 $16) 33... Kf8 {[%emt 0:01:30]} (33... Bf3 $11 34. Re1 Rdd8) 34. Kc1 $14 {[%emt 0:01:34]} Bd5 {[%emt 0:04:20]} (34... f6 $14) 35. R1d3 {[%emt 0:01:55]} ({Better is} 35. f5 $16) 35... f6 {[%emt 0:01:37] [#]} 36. Kd1 {[%emt 0:01:38]} (36. gxf6 gxf6 37. Rg3 fxe5 38. fxe5 Rg7 39. Rf4+ Kg8 $17) (36. Rh3 $142 $1 {[%cal Rh3h7]} Kg8 37. gxf6 gxf6 38. Ne4 Bxe4 39. Rxd7 fxe5 40. fxe5) 36... Ke7 {[%emt 0:04:21] [#]} (36... Kg8 $16) 37. Rh3 $1 $18 {[%emt 0:01:39]} fxe5 {[%emt 0:00:36]} 38. fxe5 {[%emt 0:00:05]} Rxd6 {[%emt 0:00:08]} (38... Rf8 $2 39. Rxh7 (39. Rxb4 Rf2 $18) (39. Ke2 Rb8 $18) 39... Kd8 40. Ke2 $18 (40. Rxb4 Kc7 $18)) 39. exd6+ {[%emt 0:00:05]} Kxd6 {[%emt 0:00:04]} 40. Rxh7 {[%emt 0:01:38] KRR-KRB} Rf8 $2 {[%emt 0:02:12]} (40... e5 41. Rdh4 g6) 41. Rxb4 {[%emt 0:01:47]} (41. Rxg7 Kc5 42. Rxd5+ exd5 $16) 41... Rf3 {[%emt 0:04:23]} 42. Ke2 {[%emt 0:01:13] Prevents Re3+. White is clearly winning.} Ke5 {[%emt 0:00:18]} 43. Rhh4 {[%emt 0:02:11]} ({Don't do} 43. Rxg7 Rh3 44. Rf7 Rxh2+ 45. Rf2 Rh1 $18) 43... Rf5 {[%emt 0:00:25]} 44. Rh3 {[%emt 0:01:09]} Rxg5 {[%emt 0:01:16]} 45. Rg3 {[%emt 0:01:49] Weighted Error Value: White=0.13 (very precise) /Black=0.26 (precise) .  Mistake:       	White=4     	Black=7      Inaccurate:     	White=3     	Black=3      OK:         	White=12    	Black=13     Best:        	White=2     	---        Strong:       	White=4     	Black=2} ({Not} 45. Rxc3 Rg2+ 46. Kf1 Rxh2 $18) 1-0

[Event "8th Brazilian Open SESC Caioba 2024"]
[Site "Caioba"]
[Date "2024.06.27"]
[Round "6.4"]
[White "Pinero Rodriguez, Carlos Jose"]
[Black "Barbosa, Evandro Amorim"]
[Result "0-1"]
[ECO "B67"]
[WhiteElo "2284"]
[BlackElo "2491"]
[Annotator "TA"]
[PlyCount "44"]
[EventDate "2024.06.15"]
[EventCountry "BRA"]
[SourceTitle "playchess.com"]
[Source "ChessBase"]
[SourceQuality "1"]
[TimeControl "5400+30"]

{[%evp 18,44,35,20,21,25,33,0,2,-43,20,-80,-76,-277,-281,-278,-273,-498,-454,-819,-812,-1837,-1442,-1547,-1411,-1409,-1110,-1105,-571]} 1. e4 {[%emt 0:00:30]} c5 {[%emt 0:04:42]} 2. Nf3 {[%emt 0:00:13]} d6 {[%emt 0:01:04]} 3. d4 {[%emt 0:00:50]} cxd4 {[%emt 0:00:13]} 4. Nxd4 {[%emt 0:00:05]} Nf6 {[%emt 0:00:12]} 5. Nc3 {[%emt 0:00:03]} Nc6 {[%emt 0:00:20]} 6. Bg5 {[%emt 0:02:22]} Bd7 {[%emt 0:00:38]} 7. Qd2 {[%emt 0:00:58]} a6 {[%emt 0:00:27]} 8. O-O-O {[%emt 0:00:38]} e6 {[%emt 0:00:28]} 9. Kb1 {[%emt 0:03:51]} Be7 {[%emt 0:01:47]} 10. f3 {[%emt 0:00:48]} Nxd4 {[%emt 0:01:57]} 11. Qxd4 {[%emt 0:00:18]} Qc7 {[%emt 0:00:57]} 12. Bc4 {[%emt 0:09:15]} b5 {[%emt 0:02:39] The position is equal.} 13. Bb3 {[%emt 0:00:02]} Rb8 {[%emt 0:15:42]} (13... a5 $1 $15 14. a3 b4 15. axb4 axb4 16. Qxb4 O-O) 14. Rhe1 {[%emt 0:08:42] [#]} (14. f4 $11 {keeps the balance.} h6 15. Bh4) 14... a5 $1 $17 {[%emt 0:16:48] ...a4 would now be deadly.} 15. Nd5 $2 {[%emt 0:10:43]} exd5 $19 {[%emt 0:00:28]} 16. exd5 {[%emt 0:01:10]} Kf8 {[%emt 0:04:41]} 17. a4 $2 {[%emt 0:35:11]} (17. a3 {might work better.}) 17... bxa4 {[%emt 0:03:48] Black is clearly winning.} 18. Rxe7 {[%emt 0:01:51]} (18. Bc4 $142) 18... axb3 {[%emt 0:05:45]} 19. Bxf6 {[%emt 0:08:07]} bxc2+ {[%emt 0:01:43]} 20. Kc1 {[%emt 0:00:02]} cxd1=Q+ {[%emt 0:01:13]} 21. Kxd1 {[%emt 0:00:04]} Rg8 {[%emt 0:04:11]} 22. Bg5 {[%emt 0:02:55]} Re8 {[%emt 0:31:47] White did not feel at home in the position after the opening.   Weighted Error Value: White=1.64/Black=1.10.  Loses game:     	White=1     	---        Mistake:       	White=3     	Black=1      Inaccurate:     	White=3     	---        OK:         	---       	Black=3      Best:        	---       	Black=2      Strong:       	---       	Black=1} 0-1

[Event "8th Brazilian Open SESC Caioba 2024"]
[Site "Caioba"]
[Date "2024.06.27"]
[Round "6.5"]
[White "Di Berardino, Diego Rafael"]
[Black "Lujan, Carolina"]
[Result "1/2-1/2"]
[ECO "D85"]
[WhiteElo "2473"]
[BlackElo "2269"]
[Annotator "TA"]
[PlyCount "118"]
[EventDate "2024.06.15"]
[EventCountry "BRA"]
[SourceTitle "playchess.com"]
[Source "ChessBase"]
[SourceQuality "1"]
[TimeControl "5400+30"]

{[%evp 30,118,28,29,36,37,48,0,0,0,1,0,0,0,-2,-1,9,6,8,8,104,86,158,146,156,163,167,175,149,43,38,51,42,42,420,156,254,262,239,196,253,222,336,91,88,80,59,0,1,0,0,0,0,0,0,0,0,0,0,0,80,0,0,0,0,0,0,0,0,0,0,0,0,0,0,0,0,0,0,0,0,0,0,0,0,0,0,0,0,0,0]} 1. d4 {[%emt 0:04:30]} Nf6 {[%emt 0:00:08]} 2. c4 {[%emt 0:00:06]} g6 {[%emt 0:00:11]} 3. Nc3 {[%emt 0:00:33]} d5 {[%emt 0:00:07]} 4. cxd5 {[%emt 0:00:09]} Nxd5 {[%emt 0:00:05]} 5. e4 {[%emt 0:00:32]} Nxc3 {[%emt 0:00:08]} 6. bxc3 {[%emt 0:00:05]} Bg7 {[%emt 0:00:12]} 7. Nf3 {[%emt 0:01:01]} c5 {[%emt 0:00:39]} 8. Bb5+ {[%emt 0:00:23]} Nc6 {[%emt 0:05:48]} 9. O-O {[%emt 0:00:30]} cxd4 {[%emt 0:08:01]} 10. cxd4 {[%emt 0:00:21]} O-O {[%emt 0:09:30]} 11. Bxc6 {[%emt 0:02:10]} bxc6 {[%emt 0:00:15]} 12. Qc2 {[%emt 0:00:24]} Qd6 {[%emt 0:17:27]} 13. a4 {[%emt 0:06:05]} Bg4 {[%emt 0:01:37]} 14. Ba3 {[%emt 0:06:39]} Qf4 {[%emt 0:03:31]} 15. Ne5 {[%emt 0:00:29]} Bxe5 {[%emt 0:04:30]} 16. dxe5 {[%emt 0:00:11]} Qxe5 {[%emt 0:03:20]} 17. h3 {[%emt 0:24:35]} Be6 {[%emt 0:08:46]} 18. f4 {[%emt 0:11:30]} (18. Bxe7 $14 Bc4 19. Bxf8 (19. Qxc4 Qxe7 20. Qxc6 Rac8 $14) 19... Bxf1 20. Rxf1 Rxf8 21. Qxc6) 18... Qd4+ $11 {[%emt 0:02:13]} 19. Kh2 {[%emt 0:00:06]} Rab8 {[%emt 0:03:52]} 20. Bxe7 {[%emt 0:15:27]} (20. Qxc6 $2 Rfc8 21. Qa6 Rc2 $19 (21... Qxe4 22. Rae1 $11)) 20... Rb2 {[%emt 0:05:24]} 21. Bc5 {[%emt 0:19:16]} (21. Qxc6 Qd2 22. Rg1 Qxf4+ 23. Kh1 Rc8 $19) 21... Rxc2 {[%emt 0:03:07]} 22. Bxd4 {[%emt 0:00:03]} Rd8 {[%emt 0:07:00]} 23. Bf6 {[%emt 0:02:32]} Rdd2 {[%emt 0:00:22]} 24. Rg1 {[%emt 0:00:03]} Kf8 {[%emt 0:11:29]} (24... Bb3 $11) 25. Rab1 $16 {[%emt 0:01:07]} Ke8 {[%emt 0:00:20]} (25... Bd7 $142) 26. Rb7 $1 $16 {[%emt 0:00:08]} (26. Rb8+ Kd7 $16) 26... a6 {[%emt 0:00:57]} 27. Re7+ $1 {[%emt 0:00:20]} Kf8 {[%emt 0:00:04]} 28. Ra7 {[%emt 0:00:07]} Ke8 {[%emt 0:00:08]} 29. Rxa6 {[%emt 0:00:17]} (29. f5 $1 $16 Ba2 (29... gxf5 $2 30. Kh1 $18) 30. Kg3 (30. Rxa6 gxf5 31. a5 Kd7 $14)) 29... Kd7 $14 {[%emt 0:02:04]} 30. Ra7+ {[%emt 0:02:27]} Kc8 {[%emt 0:00:09]} 31. Be5 {[%emt 0:02:12]} Rd3 $2 {[%emt 0:03:14][%mdl 8192] [#]} ({Black should try} 31... Rd7 $14 32. Rxd7 Kxd7) 32. f5 $2 {[%emt 0:00:24]} (32. Rb1 $1 $18 {[%csl Ge5][%cal Rb1b8][%mdl 512]} Bb3 33. h4) 32... gxf5 {[%emt 0:00:27]} (32... Ba2 $16 33. a5 Rd7 34. Rxd7 Kxd7) 33. Rb1 $18 {[%emt 0:00:04]} Bb3 {[%emt 0:00:43]} 34. exf5 {[%emt 0:01:34]} c5 {[%emt 0:00:15]} (34... Re2 $142 35. Re7 c5) 35. Bf4 {[%emt 0:00:32]} Rc4 {[%emt 0:01:20]} (35... Re2 $142 36. Rc1 c4 37. Rxf7 Rd4) 36. Bg3 $2 {[%emt 0:00:06]} (36. Re1 $18 {is the precise move to win. Re8+ would kill now.} Rxf4 37. Re8+ Rd8 38. Ra8+ Kc7 39. Rexd8 (39. Raxd8 Bxa4 40. Rc8+ Kd6 $18) 39... Rxf5 40. Rac8+ Kb7 41. a5) 36... Rxa4 $16 {[%emt 0:00:11]} 37. Rxb3 {[%emt 0:00:10]} Rxg3 {[%emt 0:00:19]} 38. Kxg3 {[%emt 0:01:49]} (38. Rxa4 $14 Rxb3 39. Ra5) 38... Rxa7 $11 {[%emt 0:00:03]} 39. Kf4 {[%emt 0:00:04]} Kd7 {[%emt 0:00:42]} 40. Ke5 {[%emt 0:00:07]} Kc6 {[%emt 0:00:08]} 41. g4 {[%emt 0:00:53]} c4 {[%emt 0:00:50]} 42. Rb8 {[%emt 0:00:24]} Kc5 {[%emt 0:00:27]} 43. Rc8+ {[%emt 0:00:36]} Kb4 {[%emt 0:00:04]} 44. Kf6 {[%emt 0:00:12]} c3 {[%emt 0:00:52] [#]} (44... Rd7 $11 {remains equal.}) 45. g5 {[%emt 0:01:05]} (45. Kg7 $1 $16) 45... Ra5 {[%emt 0:01:01]} 46. h4 {[%emt 0:00:32]} (46. Kxf7 $2 Rxf5+ 47. Kg8 Rxg5+ 48. Kxh7 Rc5 49. Rb8+ Kc4 $19) 46... Rc5 {[%emt 0:00:17]} 47. Rb8+ {[%emt 0:00:07]} (47. Rxc5 Kxc5 48. Ke5 c2 49. h5 c1=Q (49... c1=B 50. Kf6 $11) 50. g6 hxg6 51. fxg6 fxg6 52. hxg6 Qg5+ 53. Ke4 Qxg6+ 54. Kf4 Kd4 55. Kf3 Qg5 56. Kf2 Qg4 57. Ke1 Ke3 58. Kf1 Qg8 59. Ke1 Qg1#) 47... Kc4 {[%emt 0:00:23]} 48. Rb1 {[%emt 0:00:09]} c2 {[%emt 0:00:29]} 49. Rc1 {[%emt 0:00:35]} Kd3 {[%emt 0:00:03]} 50. Kxf7 {[%emt 0:00:55]} Rxf5+ {[%emt 0:01:15]} (50... Kd2 $2 51. Rxc2+ Rxc2 52. f6 $18) 51. Kg7 {[%emt 0:00:04]} Rf4 {[%emt 0:00:32]} 52. h5 {[%emt 0:01:16]} Rg4 {[%emt 0:00:15]} ({Don't blunder} 52... Kd2 $2 53. Rxc2+ Kxc2 54. Kxh7 $18) 53. g6 {[%emt 0:00:14]} hxg6 {[%emt 0:00:19]} 54. hxg6 {[%emt 0:00:04]} Kd2 {[%emt 0:00:09]} 55. Rxc2+ {[%emt 0:00:03]} Kxc2 {[%emt 0:00:03]} 56. Kf7 {[%emt 0:00:10]} Kd3 {[%emt 0:00:07]} 57. g7 {[%emt 0:00:04]} Ke4 {[%emt 0:00:19]} 58. g8=Q {[%emt 0:00:06]} Rxg8 {[%emt 0:00:04]} 59. Kxg8 {[%emt 0:00:38]} Ke5 {[%emt 0:03:45]} 1/2-1/2

[Event "8th Brazilian Open SESC Caioba 2024"]
[Site "Caioba"]
[Date "2024.06.27"]
[Round "6.7"]
[White "Rodrigues, Edgar"]
[Black "Acosta, Pablo Ismael"]
[Result "1-0"]
[ECO "C11"]
[WhiteElo "2229"]
[BlackElo "2449"]
[Annotator "TA"]
[PlyCount "109"]
[EventDate "2024.06.15"]
[EventCountry "BRA"]
[SourceTitle "playchess.com"]
[Source "ChessBase"]
[SourceQuality "1"]
[TimeControl "5400+30"]

{[%evp 20,109,-14,-56,0,-27,10,4,36,24,33,32,39,0,0,2,14,-22,-18,-140,-145,-208,-228,-201,-90,-107,-90,-181,-183,-178,-130,-137,-113,-118,-115,-114,-122,-108,-89,-112,-99,-102,-26,-56,-47,-50,-5,-35,-16,-30,-29,-31,-31,-17,-12,-13,-13,-13,0,-8,0,-9,-9,-19,0,-7,0,0,51,17,41,44,54,52,58,40,160,169,162,148,254,245,503,470,524,515,515,515,491,465,1252,1237]} 1. e4 {[%emt 0:02:25]} e6 {[%emt 0:00:24]} 2. d4 {[%emt 0:00:06]} d5 {[%emt 0:00:06]} 3. Nc3 {[%emt 0:00:14]} Nf6 {[%emt 0:00:25]} 4. e5 {[%emt 0:00:07]} Nfd7 {[%emt 0:00:07]} 5. Nce2 {[%emt 0:00:08]} c5 {[%emt 0:00:00]} 6. c3 {[%emt 0:00:00]} Nc6 {[%emt 0:00:00]} 7. f4 {[%emt 0:00:00]} Be7 {[%emt 0:00:21]} 8. Nf3 {[%emt 0:00:00]} f6 {[%emt 0:01:04] C11: French: Classical System: 4 e5 and 4 Bg5 dxe4.} 9. a3 {[%emt 0:04:30]} a5 {[%emt 0:03:36]} 10. h4 $146 {[%emt 0:03:48]} ({Predecessor:} 10. g3 O-O 11. Bh3 Nb6 12. exf6 gxf6 13. O-O a4 14. f5 e5 15. Bh6 Rf7 16. Qc1 cxd4 17. cxd4 {1-0 Marek,M (2381)-Urazayev,A (2377) Wch U18 Khanty-Mansiysk 2016 (11)}) 10... a4 {[%emt 0:09:20]} 11. Rh3 {[%emt 0:08:53]} Nb6 {[%emt 0:05:08]} (11... O-O $15) 12. dxc5 {[%emt 0:07:32]} Bxc5 {[%emt 0:09:35]} 13. Ned4 {[%emt 0:00:29]} Qe7 {[%emt 0:01:33]} 14. Be3 {[%emt 0:04:36]} Na5 {[%emt 0:04:30]} 15. Nd2 {[%emt 0:09:35]} Bd7 {[%emt 0:05:09]} 16. exf6 {[%emt 0:11:08]} gxf6 {[%emt 0:05:04]} 17. Qh5+ {[%emt 0:03:12]} Qf7 {[%emt 0:03:30]} 18. Ne4 {[%emt 0:02:30]} Be7 {[%emt 0:14:28]} 19. Ng3 {[%emt 0:03:32]} (19. Be2 $1 $11 {remains equal.} Qxh5 (19... dxe4 20. f5 $11) 20. Bxh5+ Kd8 (20... Kf8 $2 21. f5 $18) 21. Nc6+ (21. Nxe6+ Bxe6 22. Bxb6+ Kc8 $16) 21... Bxc6 22. Bxb6+ Kc8 (22... Kd7 23. O-O-O $15) 23. Nd2) 19... Nbc4 $17 {[%emt 0:02:24]} 20. Bc1 {[%emt 0:00:33]} (20. Qf3 $17 {was called for.}) 20... Qxh5 $19 {[%emt 0:07:45]} 21. Nxh5 {[%emt 0:00:03]} e5 {[%emt 0:00:17]} (21... Rg8 $1 $19 {And now ...e5 would win.} 22. Nc2 Nb3) 22. Nf5 $17 {[%emt 0:00:24]} Nb3 {[%emt 0:04:36]} 23. Bxc4 {[%emt 0:03:15]} (23. Rb1 $17) 23... dxc4 $19 {[%emt 0:01:13]} (23... Nxa1 24. Nhg7+ Kd8 25. Bxd5 $11) 24. Rb1 {[%emt 0:00:18]} Rg8 {[%emt 0:01:16]} (24... Bxf5 25. Ng7+ Kd7 26. Nxf5 $15) (24... Ra5 $19 {White must now prevent ...exf4.} 25. Re3 Rg8 (25... Bxf5 26. Ng7+ Kd7 27. Nxf5 $17) 26. fxe5 Bxf5 27. exf6 Bxb1 28. Rxe7+ Kd8) 25. Rg3 $17 {[%emt 0:01:46]} Rg6 {[%emt 0:05:55]} 26. Nxe7 {[%emt 0:09:46]} Kxe7 {[%emt 0:00:07]} 27. Rxg6 {[%emt 0:04:25]} hxg6 {[%emt 0:00:03]} 28. Ng3 {[%emt 0:00:07]} Nc5 {[%emt 0:00:15]} 29. fxe5 {[%emt 0:01:40]} Nd3+ {[%emt 0:00:04]} (29... fxe5 30. Be3 Nd3+ 31. Kd2 $17) 30. Kf1 {[%emt 0:00:27]} fxe5 {[%emt 0:02:48]} (30... Nxe5 $17 31. Bf4 Nd3) 31. Bg5+ {[%emt 0:06:27]} Ke6 {[%emt 0:01:25]} 32. Kg1 {[%emt 0:03:16]} Kd5 {[%emt 0:02:49]} 33. Rd1 {[%emt 0:00:27]} Bg4 {[%emt 0:01:19]} 34. Rd2 {[%emt 0:00:08]} Rf8 {[%emt 0:03:03]} 35. Nf1 {[%emt 0:00:19]} Be6 {[%emt 0:00:43]} 36. Ne3+ {[%emt 0:00:46]} Kc6 {[%emt 0:00:08]} 37. Nd1 {[%emt 0:00:17]} Bf5 {[%emt 0:04:10]} 38. Nf2 {[%emt 0:01:19]} Nc1 {[%emt 0:01:01]} 39. Nd1 {[%emt 0:02:21]} Rf7 {[%emt 0:01:10]} 40. Rf2 {[%emt 0:02:13]} Nd3 {[%emt 0:00:11]} 41. Rd2 {[%emt 0:00:25]} Nc5 {[%emt 0:00:20]} 42. Nf2 {[%emt 0:02:19]} Bd3 {[%emt 0:00:56]} 43. Be3 {[%emt 0:00:19]} e4 {[%emt 0:00:03]} (43... Rf8 $11) 44. Kh2 {[%emt 0:00:31]} Ne6 {[%emt 0:00:20]} 45. Ng4 {[%emt 0:00:40]} Rf5 {[%emt 0:03:26]} 46. Rf2 {[%emt 0:00:21]} Kd6 {[%emt 0:00:31]} 47. Nh6 {[%emt 0:01:32]} Rh5 {[%emt 0:00:41]} (47... Rxf2 $14 48. Bxf2 Nd8) 48. Kg3 $16 {[%emt 0:00:54]} Rb5 {[%emt 0:00:26] [#]} 49. Nf7+ $1 {[%emt 0:00:31]} Kd7 {[%emt 0:00:39] [#]} (49... Ke7 $16) 50. Nh8 $1 $18 {[%emt 0:00:26]} g5 $2 {[%emt 0:00:34]} (50... Nc7) 51. h5 $18 {[%emt 0:00:03]} Ke8 {[%emt 0:00:12]} 52. Nf7 {[%emt 0:01:23]} Ke7 {[%emt 0:00:13]} 53. h6 {[%emt 0:00:27]} Nf8 {[%emt 0:00:28]} 54. Nd6 {[%emt 0:01:56]} (54. Bxg5+ Kd7 55. Be3 Nh7 $18) 54... Ra5 {[%emt 0:01:39]} (54... Re5 $142 55. Rxf8 (55. Nxb7 Nh7 $18) (55. Nf7 Re6 $18) 55... Kxf8) 55. Rf7+ {[%emt 0:00:35]} 1-0